[Event "39th Muensterland Open 2022"]
[Site "Muenster"]
[Date "2022.10.03"]
[Round "3.6"]
[White "Quinones-Maletti, Julio Guillermo"]
[Black "Schmitzer, Klaus"]
[Result "1-0"]
[ECO "B12"]
[WhiteElo "2020"]
[BlackElo "2241"]
[Annotator "TA"]
[PlyCount "67"]
[EventDate "2022.10.01"]
[EventType "swiss"]
[EventCountry "GER"]
[SourceTitle "playchess.com"]
[Source "ChessBase"]
[SourceQuality "1"]
[TimeControl "40/5400+30:1800+30"]

{[%evp 9,67,-27,-28,-44,0,0,0,-2,150,137,100,63,412,-34,411,432,745,764,684,564,1169,1155,1145,1153,29976,5904,29991,29992,29992,29993,29993,29988,29988,2814,2570,2528,2243,2242,1805,1764,2679,1707,29987,29988,29984,29978,29978,29980,29980,29981,29987,29982,29982,29983,29981,29978,29997,29997,29997,29998]} 1. e4 {[%emt 0:20:25]} c6 {[%emt 0:01:08]} 2. d4 {[%emt 0:00:11]} d5 {[%emt 0:00:12]} 3. e5 {[%emt 0:00:07]} Bf5 {[%emt 0:00:26]} 4. h4 {[%emt 0:00:25]} h5 {[%emt 0:00:27]} 5. Bg5 {[%emt 0:00:18]} Qb6 {[%emt 0:01:27]} 6. Bd3 {[%emt 0:00:10] B12: Caro-Kann: Advance Variation.} Bxd3 {[%emt 0:15:25]} ({Of course not} 6... Qxb2 $6 7. Nd2 Bxd3 8. cxd3 $17) (6... Qxd4 $5 7. Nf3 Qg4 $15) 7. Qxd3 {[%emt 0:00:11][%cal Oe5e6] Hoping for e6!} Qxb2 {[%emt 0:00:29]} 8. e6 {[%emt 0:03:02][%cal Og1f3] The position is equal.} fxe6 $2 {[%emt 0:13:11] [#]} (8... Qxa1 9. Qb3 b5 10. Nf3 $17) (8... f6 $11 9. Qc3 Qxc3+ 10. Nxc3 fxg5 11. hxg5 Na6) 9. Nf3 $1 $16 {[%emt 0:00:21][%cal Oe1g1]} Nd7 {[%emt 0:01:24]} 10. O-O $1 {[%emt 0:08:31][%mdl 1024] aiming for Nbd2. White has strong compensation.} e5 $2 {[%emt 0:06:26][%mdl 8192] [#]} ({Black should play} 10... Qxa1 $14 11. Qb3 O-O-O) 11. Qg6+ $1 $18 {[%emt 0:13:59]} Kd8 {[%emt 0:00:15]} 12. Nbd2 {[%emt 0:00:20] Threatens to win with Rab1.} e4 {[%emt 0:05:47]} (12... Kc7 $142 13. dxe5 Qc3) 13. Rab1 {[%emt 0:07:11][%cal Ba1b1,Bb1b3,Bb3b7][%mdl 96] Skewer} ({And not} 13. Rfb1 Qc3 $11) 13... Qc3 {[%emt 0:11:20]} 14. Rb3 {[%emt 0:07:34]} Qxc2 {[%emt 0:02:20]} 15. Rxb7 {[%emt 0:10:29] White wants to mate with Qd6.} Ngf6 {[%emt 0:00:45]} 16. Ne5 {[%emt 0:02:45][%cal Ob7d7,Bf3e5,Be5f7,Bf7d6][%mdl 32] [#] Intending Rxd7+! and mate.} Rh6 $146 {[%emt 0:18:07]} ({Predecessor:} 16... Nxe5 17. dxe5 {1-0 (16) Draskovic,L (2282)-Soysal,S (2114) Al Ain 2013}) 17. Qf5 {[%emt 0:11:19][%cal Rb7d7]} Nb6 {[%emt 0:00:41]} 18. Qe6 {[%emt 0:02:50]} Rc8 {[%emt 0:02:53]} 19. Nf7+ {[%emt 0:00:20]} Ke8 {[%emt 0:00:08]} 20. Nd6+ {[%emt 0:10:02]} Kd8 {[%emt 0:00:10]} 21. Qf7 {[%emt 0:00:00]} (21. Bxh6 $142 gxh6 22. Nf7+ Ke8 {[#]} 23. Rxb6 $1 {[%mdl 512]} Ra8 24. Nd6+ Kd8 25. Rb7 Qa4 26. Qf7) 21... Rc7 {[%emt 0:02:19]} 22. Qxf8+ {[%emt 0:00:00]} Kd7 {[%emt 0:00:02]} 23. Rxc7+ {[%emt 0:00:00]} Kxc7 {[%emt 0:00:10]} 24. Qxe7+ {[%emt 0:00:01]} Nfd7 {[%emt 0:00:57]} 25. Bf4 {[%emt 0:01:41]} Rg6 {[%emt 0:01:24]} 26. N6xe4+ {[%emt 0:00:22] White mates.} Kc8 {[%emt 0:01:11]} 27. Qe8+ {[%emt 0:00:21]} Kb7 {[%emt 0:00:02]} 28. Qxg6 {[%emt 0:00:32]} dxe4 {[%emt 0:00:08]} 29. Nxe4 {[%emt 0:00:10]} Qxa2 {[%emt 0:00:28]} 30. Nc5+ {[%emt 0:00:31]} Nxc5 {[%emt 0:15:48]} 31. dxc5 {[%emt 0:00:11]} Nd5 {[%emt 0:00:00]} 32. Rb1+ {[%emt 0:00:21]} Ka6 {[%emt 0:00:00]} 33. Qd3+ {[%emt 0:00:06]} Ka5 {[%emt 0:00:00]} 34. Bd2+ {[%emt 0:00:12] Weighted Error Value: White=0.16 (very precise) /Black=1.69} 1-0

[Event "39th Muensterland Open 2022"]
[Site "Muenster"]
[Date "2022.10.03"]
[Round "3.7"]
[White "Goldschmidt, Christian"]
[Black "Gallasch, Robin"]
[Result "1/2-1/2"]
[ECO "B13"]
[WhiteElo "2226"]
[BlackElo "2021"]
[Annotator "TA"]
[PlyCount "134"]
[EventDate "2022.10.01"]
[EventType "swiss"]
[EventCountry "GER"]
[SourceTitle "playchess.com"]
[Source "ChessBase"]
[SourceQuality "1"]
[TimeControl "40/5400+30:1800+30"]

{[%evp 12,134,7,7,1,1,1,1,2,9,0,-44,-4,-9,-30,-30,-8,-9,-8,-11,-15,-92,-41,-79,-63,-125,-122,-304,-255,-255,-133,-135,-81,-67,-29,-30,61,61,68,62,90,91,170,159,206,216,236,215,473,477,424,404,460,489,480,463,487,484,596,601,29975,29976,29978,29977,6295,975,29980,29981,5622,866,197,1226,916,442,625,617,483,476,459,444,933,622,622,620,616,612,606,597,586,407,393,-7141,-6070,-2011,0,-355,-359,-378,-367,-29985,-181,-181,-181,-181,-181,-181,-181,-181,-181,-181,-182,-182,0,0,0,0,0,0,0,0,0,0,0,0,0]} 1. e4 {[%emt 0:00:11]} c6 {[%emt 0:00:05]} 2. d4 {[%emt 0:00:26]} d5 {[%emt 0:00:05]} 3. exd5 {[%emt 0:00:10]} cxd5 {[%emt 0:00:08]} 4. c4 {[%emt 0:00:07]} Nf6 {[%emt 0:00:05]} 5. Nc3 {[%emt 0:00:07]} Nc6 {[%emt 0:00:06]} 6. Bg5 {[%emt 0:00:14]} Be6 {[%emt 0:00:06]} 7. Be2 {[%emt 0:00:29] The modern move.} Qa5 {[%emt 0:00:31] B13: Caro-Kann: Exchange Variation and Panov-Botvinnik Attack.} (7... dxc4 8. Bxf6 exf6 9. d5) (7... dxc4 $2 8. Bxf6 exf6 9. d5 $18) 8. c5 {[%emt 0:00:45]} Ne4 {[%emt 0:01:52]} 9. Bd2 {[%emt 0:00:05]} Nxd2 {[%emt 0:02:29]} 10. Qxd2 {[%emt 0:00:06]} g6 {[%emt 0:05:02]} 11. Bf3 {[%emt 0:00:28]} (11. h3) 11... Bg7 {[%emt 0:03:18]} 12. Nge2 {[%emt 0:00:05]} O-O {[%emt 0:01:35]} 13. O-O {[%emt 0:00:17]} b6 $36 {[%emt 0:21:20][%mdl 2048] Black is more active.} 14. cxb6 $1 {[%emt 0:01:04]} axb6 {[%emt 0:01:52]} 15. Rfd1 {[%emt 0:02:24]} Rfd8 {[%emt 0:01:39] [#]} 16. a4 $146 {[%emt 0:06:56]} (16. Rac1 Rac8 17. Qe3 Qb4 18. b3 h5 19. g3 Kh7 20. Bg2 Qd6 21. Qd2 Bg4 22. f3) (16. a3) (16. a3 $11 {keeps the balance.}) ({Predecessor:} 16. Rac1 Rac8 17. Qe3 Qb4 18. b3 h5 19. g3 Kh7 20. Bg2 Qd6 21. Qd2 Bg4 22. f3 {0-1 (66) Hunt,A (2461)-Smolen,J (2327) Sunningdale 2007}) 16... Qb4 {[%emt 0:05:31]} (16... Bc8 $17) 17. Qd3 {[%emt 0:01:39]} Ra5 {[%emt 0:08:33]} (17... Qxb2 18. g4 (18. Rab1 Qa3 $15) 18... Qb4 19. Rab1 $15) 18. g4 {[%emt 0:00:44]} (18. Qe3 $15) 18... Bc8 $17 {[%emt 0:03:10] White must now prevent ...e5.} (18... Qxb2 19. Rdb1 (19. Rab1 Qa3) 19... Nb4 20. Qd1 (20. Rxb2 Nxd3 21. Rxb6 g5)) (18... Qxb2 $2 19. Rdb1 (19. Rab1 Qa3 $11) 19... Nb4 20. Qd1 $18 (20. Rxb2 Nxd3 21. Rxb6 h5 $14)) 19. b3 $2 {[%emt 1:23:43]} (19. Rac1 $17) 19... Ba6 {[%emt 0:00:56] A strong pair of Bishops.} ({Inferior is} 19... Qxb3 20. Rab1 Qa3 21. Rxb6 $11) 20. Qe3 {[%emt 0:00:00]} Bxe2 {[%emt 0:01:07]} ({Weaker is} 20... Qxb3 21. Rab1 Qc4 22. Rbc1 $15 (22. Rxb6 e5 $15)) (20... e5 $1 $19 {[%cal Re5d4]} 21. Na2 Qf8) 21. Nxe2 {[%emt 0:00:00]} e6 {[%emt 0:01:39]} (21... e5 $142 {[%cal Re5d4]} 22. dxe5 Nxe5) 22. Rac1 {[%emt 0:00:00]} Qd6 {[%emt 0:02:54]} 23. Nc3 $1 {[%emt 0:00:00]} Nxd4 {[%emt 0:09:07]} (23... Na7) ({Black should play} 23... Na7 $11) 24. Rxd4 $14 {[%emt 0:00:00]} Bxd4 {[%emt 0:00:05]} 25. Qxd4 {[%emt 0:00:00]} e5 {[%emt 0:00:05]} (25... Rc8) 26. Qd2 {[%emt 0:00:00] White is more active.} e4 {[%emt 0:01:26]} (26... Qb4) (26... Qb4 $16 {was worth a try.}) 27. Bg2 $18 {[%emt 0:00:00]} Rc5 {[%emt 0:03:19]} (27... Qb4 $16 {was necessary.}) 28. Rd1 $1 {[%emt 0:00:00][%cal Oc3e4] aiming for Nxe4!} f5 {[%emt 0:08:33]} 29. b4 {[%emt 0:00:00]} Rxc3 {[%emt 0:00:20]} (29... Rcc8) 30. Qxc3 {[%emt 0:00:00]} d4 {[%emt 0:00:02]} 31. Qc4+ {[%emt 0:00:00]} Kg7 {[%emt 0:00:06]} 32. gxf5 {[%emt 0:00:00]} gxf5 {[%emt 0:00:10]} 33. f3 {[%emt 0:00:00]} e3 {[%emt 0:00:54]} 34. Bf1 {[%emt 0:00:00]} Kh6 {[%emt 0:03:57]} 35. Kh1 {[%emt 0:00:00]} Qf4 {[%emt 0:04:49]} 36. Qe6+ {[%emt 0:00:00]} Kh5 {[%emt 0:00:05]} 37. Qf7+ {[%emt 0:00:00]} Kh6 {[%emt 0:00:06]} 38. Be2 {[%emt 0:00:00]} (38. Qf6+ $142 Kh5 39. Be2) 38... Rd6 {[%emt 0:03:54]} 39. Rg1 {[%emt 0:00:00]} Rg6 {[%emt 0:06:06]} 40. Qc4 {[%emt 0:00:00]} (40. Qf8+ $142 Kh5 41. Rg3) 40... Rxg1+ {[%emt 0:01:20]} 41. Kxg1 {[%emt 0:14:49]} Qh4 {[%emt 0:31:32]} 42. Qd3 {[%emt 0:01:31]} (42. Qe6+ $142 Kg7 43. Qe5+ Kf8 44. Qxf5+ Ke7 45. Qe4+ Qxe4 46. fxe4) 42... Qe1+ {[%emt 0:00:00]} (42... Kg5 $142 43. Qd1 d3 44. Bxd3 Qxb4) 43. Kg2 {[%emt 0:00:00]} Qf2+ {[%emt 0:00:00]} 44. Kh3 {[%emt 0:00:00]} Kg5 {[%emt 0:00:00]} 45. Qd1 {[%emt 0:00:00] Hoping for a5.} Qh4+ {[%emt 0:00:00]} (45... f4 $142 46. a5 bxa5 47. bxa5 Qh4+ 48. Kg2 Kg6 49. Qc2+ Kf6) 46. Kg2 {[%emt 0:00:00] And now a5 would win.} d3 {[%emt 0:00:00]} 47. Qxd3 {[%emt 0:00:00]} Qf2+ {[%emt 0:00:00]} 48. Kh1 {[%emt 0:00:00]} Qe1+ {[%emt 0:00:00]} 49. Bf1 {[%emt 0:00:00]} Kf4 {[%emt 0:00:00]} 50. Qd6+ {[%emt 0:00:00]} Kxf3 {[%emt 0:00:00][%cal Re1f1]} 51. Qg3+ $4 {[%emt 0:00:00][%mdl 8192]} (51. Qd5+ $18 Kf4 52. Qc4+ Ke5 53. Qb5+ Kf4 54. a5 bxa5 55. bxa5) 51... Qxg3 $19 {[%emt 0:00:00]} 52. hxg3 {[%emt 0:00:00]} Kxg3 $2 {[%emt 0:00:00][%mdl 4096] Endgame KB-KP} (52... Kf2 $19 53. Bb5 h5) 53. a5 $2 {[%emt 0:00:00][%mdl 8192]} (53. Kg1 $11 Kf3 54. a5 bxa5 55. bxa5) 53... bxa5 $1 {[%emt 0:00:00]} 54. b5 {[%emt 0:00:00]} Kf2 {[%emt 0:00:00]} 55. Bc4 {[%emt 0:00:00]} (55. b6 $19 Kxf1 56. b7) 55... f4 $2 {[%emt 0:00:00]} (55... e2 $2 56. Bxe2 $1 {[%mdl 512]} Kxe2 57. b6 $18) (55... a4 $1 {mates} 56. Kh2 a3 57. Kh3 e2 58. Bxe2 a2 59. Kh4 Kxe2 60. Kg5 a1=Q 61. Kxf5 Qb1+ 62. Ke6 Qxb5 63. Kf7 Qd7+ 64. Kf6 h5 65. Ke5 Kf3 66. Kf6 Kf4 67. Kg6 Qe7 68. Kh6 Kf5 69. Kxh5 Qh7#) 56. b6 {[%emt 0:00:00] Intending b7 and mate.} f3 {[%emt 0:00:00] ( -> ...e2)} (56... e2 $2 {[#]} 57. Bxe2 $1 {[%mdl 512]} Kxe2 58. b7 $18) 57. b7 {[%emt 0:00:00]} e2 {[%emt 0:00:00]} 58. b8=Q {[%emt 0:33:10]} e1=Q+ {[%emt 0:00:00]} 59. Kh2 {[%emt 0:00:00] White wants to mate with Qg3+.} Qg1+ {[%emt 0:00:00][%mdl 1024] Black has strong compensation.} 60. Kh3 {[%emt 0:00:00] Threatening mate with Qb6+.} Qg2+ {[%emt 0:01:23]} 61. Kh4 {[%emt 0:00:00] Qa7+ would kill now.} Kg1 $2 {[%emt 0:00:55]} ({Black should try} 61... Qh1+ $19 62. Kg4 h5+ 63. Kf5 Qh3+ 64. Ke4 Kg2) 62. Qb1+ $11 {[%emt 0:00:00] The position is equal.} Kh2 {[%emt 0:00:29] ...Qg3+ is the strong threat.} 63. Qb8+ {[%emt 0:00:00]} Kh1 {[%emt 0:00:09] Strongly threatening ...Qh2+.} 64. Qb1+ {[%emt 0:00:00]} Qg1 {[%emt 0:00:07]} (64... Kh2 $5 65. Qb8+ $8 Kg1 66. Qb1+ Kh2 $11) 65. Qe4 {[%emt 0:00:00]} Qh2+ {[%emt 0:00:23]} 66. Kg4 {[%emt 0:00:00]} Qg2+ {[%emt 0:00:36]} 67. Kf4 {[%emt 0:00:00]} h5 {[%emt 0:04:04] A wild game.  Weighted Error Value: White=0.15 (very precise) /Black=0.72} 1/2-1/2

[Event "39th Muensterland Open 2022"]
[Site "Muenster"]
[Date "2022.10.03"]
[Round "3.8"]
[White "Bungarten, Jona"]
[Black "Kummerow, Heiko"]
[Result "1-0"]
[ECO "C07"]
[WhiteElo "2010"]
[BlackElo "2208"]
[Annotator "TA"]
[PlyCount "51"]
[EventDate "2022.10.01"]
[EventType "swiss"]
[EventCountry "GER"]
[SourceTitle "playchess.com"]
[Source "ChessBase"]
[SourceQuality "1"]
[TimeControl "40/5400+30:1800+30"]

{[%evp 25,51,25,33,0,56,44,51,27,50,39,23,14,50,60,87,79,133,139,486,512,834,835,29987,29988,29988,29989,29989,29990]} 1. e4 {[%emt 0:00:02]} e6 {[%emt 0:00:11]} 2. d4 {[%emt 0:00:11]} d5 {[%emt 0:00:06]} 3. Nd2 {[%emt 0:00:08]} c5 {[%emt 0:00:44]} 4. exd5 {[%emt 0:00:10]} Qxd5 {[%emt 0:00:11]} 5. Ngf3 {[%emt 0:00:11]} cxd4 {[%emt 0:00:07]} 6. Bc4 {[%emt 0:00:08]} Qd6 {[%emt 0:00:19]} 7. O-O {[%emt 0:00:15]} Nf6 {[%emt 0:00:19]} 8. Nb3 {[%emt 0:00:18]} Nc6 {[%emt 0:00:07]} 9. Nbxd4 {[%emt 0:00:07]} Nxd4 {[%emt 0:00:09]} 10. Nxd4 {[%emt 0:00:05]} Be7 {[%emt 0:00:38]} 11. c3 {[%emt 0:01:04]} O-O {[%emt 0:00:37]} 12. Qf3 {[%emt 0:02:16]} Qc7 {[%emt 0:12:37]} 13. Bb3 {[%emt 0:01:49]} Bd7 {[%emt 0:04:14]} 14. Re1 {[%emt 0:01:53] C07: French Tarrasch: 3...c5, 4 Ngf3 and 4 exd5 Qxd5.} Rfe8 {[%emt 0:07:27]} (14... Bd6 $11) 15. Bf4 $14 {[%emt 0:01:37]} Qb6 {[%emt 0:00:19] [#]} 16. Rad1 $146 {[%emt 0:00:56] White is slightly better.} ({Predecessor:} 16. Be5 a5 17. a4 Bc6 18. Nxc6 bxc6 19. Bc4 Rad8 20. b3 Nd7 21. Bf4 Nf6 22. Be5 Nd7 23. Bf4 Nf6 24. Be5 {½-½ (24) Kushagra,M (2252)-Zhang,X (2316) Abu Dhabi 2019}) 16... a5 {[%emt 0:01:08][%cal Ba7a5,Ba5a4,Ba4a3][%mdl 32]} 17. Rd2 {[%emt 0:07:21]} a4 {[%emt 0:04:12]} 18. Bc2 {[%emt 0:01:33]} a3 {[%emt 0:00:18] [#] aiming for ...e5.} (18... e5 $5 19. Rxe5 Bd6 20. Rxe8+ Rxe8 $14) 19. b3 {[%emt 0:01:45]} Rac8 {[%emt 0:04:04]} 20. Be5 {[%emt 0:05:34]} Bc6 {[%emt 0:16:11]} (20... Red8 $142) 21. Qf4 $16 {[%emt 0:08:23] And now Re3 would win. White is more active.} Rf8 $2 {[%emt 0:05:46][%mdl 8192]} (21... h6 $16 {is a better chance.} 22. Qg3 (22. Nxc6 Qxc6 23. Qg3 Red8 $14) 22... Red8) 22. Re3 $18 {[%emt 0:03:56]} Nh5 {[%emt 0:19:04]} (22... Bd5 $142 23. Rg3 g6) 23. Qg4 {[%emt 0:09:29] White threatens Bxh7+ and mate.} Nf6 {[%emt 0:00:44] [#]} 24. Bxh7+ $1 {[%emt 0:03:13][%mdl 512] White mates.} Kxh7 {[%emt 0:00:22]} 25. Rh3+ {[%emt 0:00:08]} Kg8 {[%emt 0:00:07]} 26. Qh4 {[%emt 0:00:07] Black got outplayed after the opening.  Weighted Error Value: White=0.05 (flawless) /Black=0.87} 1-0

[Event "39th Muensterland Open 2022"]
[Site "Muenster"]
[Date "2022.10.03"]
[Round "3.9"]
[White "Woestmann, Ulrich"]
[Black "Panjer, Sidney"]
[Result "0-1"]
[ECO "C50"]
[WhiteElo "1992"]
[BlackElo "2197"]
[Annotator "TA"]
[PlyCount "162"]
[EventDate "2022.10.01"]
[EventType "swiss"]
[EventCountry "GER"]
[SourceTitle "playchess.com"]
[Source "ChessBase"]
[SourceQuality "1"]
[TimeControl "40/5400+30:1800+30"]

{[%evp 10,162,13,9,8,9,8,0,9,5,0,0,0,0,0,-4,-6,-20,9,-22,-33,-54,-44,-59,-56,-66,-28,-16,106,106,436,-62,-68,-68,-63,-50,-55,-64,-47,-56,-58,-92,-79,-98,-109,-118,-105,-110,-115,-152,-132,-143,-127,-147,-160,-143,-134,-180,-158,-186,-155,-165,-147,-153,-135,-135,-136,-136,-129,-218,-225,-228,-230,-231,-218,-217,-225,-276,-239,-227,-214,-203,-209,-219,9,8,314,315,313,306,306,302,327,343,331,339,328,323,353,360,462,360,360,345,323,312,300,300,289,298,317,318,541,427,1008,1002,856,770,700,496,481,471,397,292,945,945,759,432,432,421,294,45,345,342,325,296,268,75,307,75,198,8,19,0,0,-1901,-1852,-2552,-2313,-4602,-2679,-1879,-1134,-29980,-29980]} 1. e4 {[%emt 0:00:02]} e5 {[%emt 0:00:07]} 2. Nf3 {[%emt 1:31:28]} Nc6 {[%emt 0:00:02]} 3. Bc4 {[%emt 0:00:10]} Bc5 {[%emt 0:00:02]} 4. d3 {[%emt 0:00:10]} Nf6 {[%emt 0:00:14]} 5. Nc3 {[%emt 0:00:07][%cal Bb1c3,Bc3d5,Bd5e3][%mdl 32]} a6 {[%emt 0:04:15]} 6. Bg5 {[%emt 0:00:21]} h6 {[%emt 0:00:45] C50: Hungarian Defence and Giuoco Pianissimo.} 7. Bxf6 {[%emt 0:00:06]} Qxf6 {[%emt 0:00:13]} 8. Nd5 {[%emt 0:00:06][%csl LRc7,LRf6]} Qd8 {[%emt 0:00:07] The position is equal.} 9. c3 {[%emt 0:00:12]} O-O {[%emt 0:06:12]} 10. b4 {[%emt 0:08:26]} Ba7 {[%emt 0:00:35]} 11. O-O {[%emt 0:00:35]} d6 {[%emt 0:00:56]} 12. h3 {[%emt 0:00:08]} Kh8 {[%emt 0:05:48]} 13. Ne3 {[%emt 1:26:31] [#]} Ne7 $146 {[%emt 0:20:42][%cal Bc6e7,Be7g6,Bg6f4][%mdl 32]} ({Predecessor:} 13... Be6 14. Bxe6 fxe6 15. Ng4 Qe8 16. a4 Qh5 17. Ne3 Rf4 18. Nh2 Qg6 19. Kh1 Raf8 {0-1 (35) Civric,Z (2215)-Ignjatovic,P (2294) Vrnjacka Banja 2012}) 14. Nh4 {[%emt 0:05:43]} Ng6 {[%emt 0:23:28]} 15. Nhf5 {[%emt 0:00:00]} Nf4 {[%emt 0:07:56]} 16. Kh2 {[%emt 0:00:00]} (16. Qg4 g6 17. Qh4 Ne2+ 18. Kh2 Qxh4 19. Nxh4 Nxc3) (16. Qg4 g6 17. Qh4 Ne2+ 18. Kh2 Qxh4 19. Nxh4 Nxc3 $17) 16... g6 {[%emt 0:05:31]} 17. g3 $1 {[%emt 0:00:00]} gxf5 {[%emt 0:01:35]} 18. gxf4 {[%emt 0:00:00] aiming for Qh5.} fxe4 {[%emt 0:00:37]} (18... Qh4 $11 {remains equal.} 19. Ng2 Qf6) 19. Qh5 $16 {[%emt 0:00:00]} Qf6 {[%emt 0:02:10][%mdl 8192]} (19... Kh7 $16 {is tougher.}) 20. f5 $2 {[%emt 0:00:00]} (20. Nd5 $18 Qg6 21. Qh4 (21. Qxg6 fxg6 22. Nxc7 Rb8 $15)) 20... Qg5 $36 {[%emt 0:07:15][%mdl 2048] Black is more active.} 21. Qxg5 {[%emt 0:00:00]} hxg5 {[%emt 0:00:03]} 22. dxe4 {[%emt 0:00:00][%cal Oh3h4]} Bxe3 {[%emt 0:00:45]} 23. fxe3 {[%emt 0:00:00]} Kg7 $1 {[%emt 0:02:04]} 24. Rg1 {[%emt 0:00:00]} Kf6 {[%emt 0:02:57]} 25. Rg4 {[%emt 0:05:30]} Rh8 {[%emt 0:00:40]} 26. Rag1 {[%emt 0:00:00] [#]} Rh5 {[%emt 0:00:46]} 27. Be2 {[%emt 0:00:00]} Bd7 {[%emt 0:00:32]} 28. R4g3 {[%emt 0:00:00]} Rh4 {[%emt 0:00:09]} 29. Rxg5 {[%emt 0:00:00]} Rah8 {[%emt 0:08:34]} 30. R5g3 {[%emt 0:00:00]} Bc6 {[%emt 0:00:58]} 31. Rf1 {[%emt 0:00:00]} Bxe4 {[%emt 0:00:43]} 32. Bg4 {[%emt 0:00:00]} a5 {[%emt 0:02:31]} 33. a3 {[%emt 0:09:30]} (33. a4 $17) 33... Ra8 $19 {[%emt 0:00:29] Hoping for ...axb4.} 34. Ra1 {[%emt 0:00:19]} b6 {[%emt 0:01:17]} 35. Rgg1 {[%emt 0:00:40]} Rhh8 {[%emt 0:00:42]} 36. Kg3 {[%emt 0:00:00]} Ra7 {[%emt 0:00:26] Black is more active.} 37. b5 {[%emt 0:00:00]} Raa8 {[%emt 0:01:48]} 38. Ra2 {[%emt 0:00:00]} Rag8 {[%emt 0:01:00]} 39. Rf1 {[%emt 0:00:00]} (39. Rd2 $17) 39... Bd3 {[%emt 0:00:23][%csl LRb5,LRf1]} 40. Rd1 {[%emt 0:00:00]} Bxb5 {[%emt 0:00:13]} 41. e4 {[%emt 0:29:15]} Bc4 {[%emt 0:33:46]} 42. Rb2 {[%emt 0:00:32]} Rd8 {[%emt 0:00:00]} 43. Kf2 {[%emt 0:00:00]} Rd7 {[%emt 0:00:00]} 44. Ke3 {[%emt 0:04:43]} Rhd8 {[%emt 0:00:00]} 45. Bf3 {[%emt 0:00:00]} d5 {[%emt 0:00:00]} 46. exd5 {[%emt 0:00:00]} Bxd5 $2 {[%emt 0:00:00]} ({Black should play} 46... Rh8 $19 47. Rh2 Rh4) 47. Rbd2 $1 $11 {[%emt 0:00:00][%cal Rd2d5]} Bc6 {[%emt 0:00:00][%mdl 8192]} 48. Bxc6 $18 {[%emt 0:00:00]} Rxd2 {[%emt 0:00:00]} 49. Rxd2 {[%emt 0:00:00][%mdl 4096] Endgame KRB-KR} Rh8 {[%emt 0:00:00]} 50. Bg2 {[%emt 0:00:00]} Rg8 {[%emt 0:00:00]} 51. Kf2 {[%emt 0:00:00] Prevents Rg3.} Kxf5 {[%emt 0:00:15]} 52. Rd7 {[%emt 0:00:00][%csl LRc7,LRf7]} f6 {[%emt 0:00:57]} 53. Rxc7 {[%emt 0:00:00]} Rd8 {[%emt 0:02:36]} 54. Ke3 {[%emt 0:00:00] Inhibits Rd2.} Rd1 {[%emt 0:00:46]} 55. Be4+ {[%emt 0:00:00]} Kg5 {[%emt 0:00:07]} 56. Rg7+ {[%emt 0:00:00]} Kh4 {[%emt 0:00:01]} 57. Rh7+ {[%emt 0:00:00]} Kg3 {[%emt 0:00:18]} 58. Rh6 {[%emt 0:00:00]} Re1+ {[%emt 0:00:28]} 59. Kd3 {[%emt 0:00:00]} Rd1+ {[%emt 0:01:19]} 60. Ke2 {[%emt 0:00:00]} Rd6 $2 {[%emt 0:00:01]} (60... Ra1 {was necessary.} 61. Rxf6 Rxa3 62. Rf3+ (62. Rxb6 Rxc3 63. Kd2 Ra3 $16) 62... Kh4) 61. Ke3 {[%emt 0:00:00]} Re6 {[%emt 0:00:18]} (61... Rd1 $142 62. Rxf6 a4 63. Rxb6 Rc1) 62. Rg6+ {[%emt 0:00:00]} Kh4 {[%emt 0:00:01]} 63. Rg8 {[%emt 0:01:45]} Rd6 {[%emt 0:00:24]} 64. Bf5 {[%emt 0:00:14]} Rd1 {[%emt 0:00:18]} 65. Rg4+ {[%emt 0:01:25]} Kh5 {[%emt 0:00:01]} 66. Rg7 {[%emt 0:01:21]} Ra1 $2 {[%emt 0:01:05]} (66... Re1+ 67. Kd2 Rf1) 67. Ke4 {[%emt 0:03:17] Rh7+ would kill now.} Kh4 {[%emt 0:02:06]} 68. c4 {[%emt 0:01:01] Threatens to win with Rg4+.} Rxa3 {[%emt 0:01:36]} 69. Rh7+ {[%emt 0:00:46]} Kg3 {[%emt 0:00:04]} 70. h4 $2 {[%emt 0:00:10]} (70. Rh6 $18) 70... Ra1 $2 {[%emt 0:00:50][%mdl 8192]} ({Black should try} 70... Rf3 $1 $14) 71. h5 {[%emt 0:00:06]} Re1+ {[%emt 0:00:10]} 72. Kd5 {[%emt 0:08:38]} Kf4 {[%emt 0:00:52]} 73. Ke6 $2 {[%emt 0:02:02]} (73. Bg6 $18 {and White stays clearly on top.}) 73... e4 $2 {[%emt 0:00:24]} (73... Rh1 $16) 74. Kxf6 $2 {[%emt 0:00:07]} ({Inferior is} 74. h6 Rh1 $11) (74. Rg7 $18 {has better winning chances.} Kf3 75. Rg4) 74... e3 {[%emt 0:00:28] [#]} (74... Rh1 $16) 75. Re7 $2 {[%emt 0:00:39]} (75. Rd7 $1 $18 {[%cal Rd7d4]}) 75... Rh1 $11 {[%emt 0:00:18]} 76. Bg6 {[%emt 0:00:47]} a4 {[%emt 0:00:33] ...a3 is the strong threat.} 77. Kg7 $2 {[%emt 0:02:03][%mdl 8192]} (77. Bf7 $11) 77... a3 $19 {[%emt 0:00:14] Strongly threatening ...a2.} 78. Re4+ {[%emt 0:02:17]} Kf3 {[%emt 0:00:08]} 79. Re7 {[%emt 0:00:36]} a2 {[%emt 0:00:59]} 80. Be4+ {[%emt 0:00:32]} Kf4 {[%emt 0:00:01]} 81. Bxh1 {[%emt 0:00:45]} a1=Q+ {[%emt 0:00:01] What a bad dream for White.  Weighted Error Value: White=0.20 (precise) /Black=0.31} 0-1